Cogmind - Beta 14 @@@ ROGUE MODE // 2024.09.09 @ 18:47:41 Player: KURIIRI Result: Destroyed by G-50 Soldier with Heavy Laser Performance ------------- Evolutions (4) 2000 Regions Visited (11) 2200 Robots Destroyed (225) 1125 Value Destroyed (9407) 9407 Prototype IDs (45) 900 Alien Tech Used (0) 0 Bonus (3415) 3415 TOTAL SCORE: 19047 Bonus ------- High Alert Combat Kills 2166 Follower Combat Kills 437 Entered Garrisons 200 Used RIF Installer 500 Aligned with FarCom 300 Friendly Fire -188 Cogmind --------- Core Integrity 0/850 Matter 232/300 Energy 40/340 System Corruption 7% Temperature Cool (-93) Movement Treading (225) Ox1 Location -6/Factory Parts ------- > --- POWER (2) -------- Particle Reactor > --- PROPULSION (2) --- Advanced Heavy Treads > --- UTILITY (8) ------ Cryofiber Web Advanced Heat Sink High-capacity Storage Unit Core Shielding Hardened Medium Armor Plating Hardlight Generator Advanced Force Field Relay Coupler [Grunt] (10) > --- WEAPON (3) ------- Quantum Rifle Compact HERF Cannon Gauss Rifle > --- INVENTORY (20) --- Light Fission Core Improved Heavy Treads Improved Heavy Treads Cryofiber Web Advanced Cooling System Compact Matter Pod (150) Graphene Brace Relay Coupler [NC] (23) Relay Coupler [Grunt] (42) Relay Coupler [Grunt] (41) Relay Coupler [Grunt] (45) Improved System Restoration Module Advanced Recalibrator Quantum Rifle Compact HERF Cannon Gauss Rifle Advanced Remote Datajack Impact Mace Peak State ------------ > --- POWER ------------ Particle Reactor > --- PROPULSION ------- Advanced Heavy Treads > --- UTILITY ---------- Advanced Heat Sink Advanced Heat Sink High-capacity Storage Unit Hardened Heavy Armor Plating Hardlight Generator Advanced Force Field Relay Coupler [Grunt] > --- WEAPON ----------- Quantum Rifle Gauss Rifle Impact Mace > --- INVENTORY -------- Light Fission Core Improved Heavy Treads Improved Heavy Treads Advanced Cooling System Compact Matter Pod Graphene Brace Relay Coupler [NC] Relay Coupler [Grunt] Relay Coupler [Grunt] Relay Coupler [Grunt] Improved System Restoration Module Advanced Recalibrator Quantum Rifle Compact HERF Cannon Compact HERF Cannon Gauss Rifle Advanced Remote Datajack [Rating: 84] Favorites ----------- Power Light Nuclear Core Engine Light Deuterium Engine Power Core Light Nuclear Core Reactor Particle Reactor Propulsion Armored Huge Wheel Treads Advanced Heavy Treads Leg Flexi-carbon Leg Wheel Armored Huge Wheel Utility High-capacity Storage Unit Device Improved Heat Sink Storage High-capacity Storage Unit Processor Advanced Targeting Computer Hackware Hacking Suite Protection Hardened Heavy Armor Plating Weapon Impact Mace Energy Gun Thermic Laser Energy Cannon Advanced Beam Cannon Ballistic Gun Gauss Rifle Launcher Grenade Launcher Special Weapon Advanced Remote Datajack Impact Weapon Impact Mace Slashing Weapon Scythe Build | -11 -10 -10 -10 -9 -8 -8 -8 -8 -6 -6 -6 ------- Run | Yrd Mat Min Exi Min Mat Sto Rec Scr Fac Gar Fac Slots Evolved 8 | . . . . . 4 . . . 4 . . Power 1 | . . . . . . . . . 1 . . Propulsion . | . . . . . . . . . . . . Utility 6 | . . . . . 4 . . . 2 . . Weapon 1 | . . . . . . . . . 1 . . Parts Attached 216 | 7 10 9 . . 47 33 7 . 51 48 4 Power 23 | 1 . 1 . . 3 4 . . 11 3 . Engine 13 | 1 . . . . 2 1 . . 8 1 . Core 9 | . . 1 . . 1 3 . . 3 1 . Reactor 1 | . . . . . . . . . . 1 . Propulsion 23 | 3 2 1 . . 1 2 2 . 2 10 . Treads 1 | . . . . . . . . . . 1 . Leg 6 | . . . . . . . . . . 6 . Wheel 16 | 3 2 1 . . 1 2 2 . 2 3 . Hover . | . . . . . . . . . . . . Flight . | . . . . . . . . . . . . Utility 72 | 1 4 3 . . 13 17 2 . 16 13 3 Device 37 | . 1 . . . 5 10 2 . 9 9 1 Storage 3 | 1 1 . . . 1 . . . . . . Processor 3 | . . . . . 1 1 . . . 1 . Hackware 4 | . . . . . . 1 . . 2 1 . Protection 25 | . 2 3 . . 6 5 . . 5 2 2 Artifact . | . . . . . . . . . . . . Weapon 98 | 2 4 4 . . 30 10 3 . 22 22 1 Energy Gun 32 | 1 1 . . . 6 3 . . 13 8 . Energy Cannon 23 | . 1 . . . 11 4 1 . 1 4 1 Ballistic Gun 27 | 1 2 2 . . 9 . 1 . 5 7 . Ballistic Cannon . | . . . . . . . . . . . . Launcher 1 | . . 1 . . . . . . . . . Special Weapon 1 | . . . . . . . . . . 1 . Impact Weapon 10 | . . 1 . . . 3 1 . 3 2 . Slashing Weapon 4 | . . . . . 4 . . . . . . Piercing Weapon . | . . . . . . . . . . . . Special Melee Weapon . | . . . . . . . . . . . . Unidentified Prototypes 11 | . . . . . 5 . . . 5 1 . Parts Lost 38 | . . 3 . . 1 3 . . 15 15 1 Power 9 | . . 1 . . . 1 . . 4 3 . Propulsion 3 | . . . . . . . . . . 3 . Utility 18 | . . . . . 1 2 . . 8 6 1 Weapon 8 | . . 2 . . . . . . 3 3 . Highest Loss Streak 7 | . . 3 . . 1 2 . . 7 4 1 To Critical Strikes . | . . . . . . . . . . . . Average Slot Usage (%) 84 | . 96 91 100 100 83 79 89 90 82 76 82 Engine 3 | . 14 . . . 2 6 . . 5 2 . Core 5 | . . 10 14 14 6 2 9 9 5 4 . Wheel 9 | . 28 25 28 28 12 9 8 9 5 1 . Device 16 | . 1 . . . 16 16 18 18 16 20 27 Storage 7 | . 14 3 . . 9 9 9 9 6 6 6 Processor 5 | . . . . . 8 9 9 9 4 3 . Hackware 5 | . . . . . . 5 9 9 12 3 6 Protection 8 | . 9 24 28 28 11 7 9 9 6 5 7 Energy Gun 5 | . 9 1 . . 5 6 . . 7 6 6 Energy Cannon 3 | . 4 . . . 3 6 9 9 . . 3 Ballistic Gun 6 | . 14 21 28 28 5 . 7 . 4 5 6 Impact Weapon 2 | . . 2 . . . 1 1 9 3 3 2 Peak Build Rating 84 | 6 12 14 15 15 53 54 41 38 76 84 84 Average Rating 46 | 5 10 12 14 15 35 43 39 38 58 65 82 On Entrance 31 | . 6 12 14 15 15 52 35 38 38 66 84 Naked Turns . | . . . . . . . . . . . . Heaviest Build 113 | 13 55 47 19 19 87 87 63 62 97 113 113 Greatest Support 70 | 32 32 24 24 24 28 28 28 28 28 70 70 Greatest Overweight (x) 17 | . 2 3 . . 3 3 2 2 3 17 1 Average Overweight (x) 1 | . 1 . . . 2 2 2 2 2 1 1 Largest Inventory Capacity 20 | 8 20 20 5 5 20 20 20 20 20 20 20 Average Capacity 19 | 7 19 8 5 5 20 20 20 20 20 20 20 Most Carried 20 | 2 20 19 5 5 20 20 20 20 20 20 20 Average Carried 16 | . 15 7 4 5 14 18 19 20 14 18 19 Final Capacity 20 | 8 20 5 5 5 20 20 20 20 20 20 20 Final Carried 20 | 2 19 5 5 5 18 16 20 20 15 19 20 Class Distribution -------------------- 35% | Mutant 13% | Scavenger-Mutant 12% | Hacker-Mutant 11% | Commander-Mutant 8% | Scavenger-Tank 7% | Bothacker-Mutant 3% | Tank 3% | Bothacker-Tank Dominant Class ---------------- Mutant | -10/Materials Mutant | -10/Mines Mutant | -10/Exiles Mutant | -9/Mines Mutant | -8/Materials Mutant | -8/Storage Commander-Mutant | -8/Recycling Commander-Mutant | -8/Scraptown Hacker-Mutant | -6/Factory Scavenger-Mutant | -6/Garrison Bothacker-Tank | -6/Factory Resources | -11 -10 -10 -10 -9 -8 -8 -8 -8 -6 -6 -6 ----------- Run | Yrd Mat Min Exi Min Mat Sto Rec Scr Fac Gar Fac Matter Collected 3500 | 272 270 110 . . 894 279 116 10 629 885 35 Remotely . | . . . . . . . . . . . . Salvage Created 11632 | 81 508 33 . . 3414 2545 266 . 2586 2124 75 Parts 323 | 2 27 . . . 103 70 13 . 63 43 2 Haulers Intercepted 12 | . 1 . . . 5 4 . . 2 . . Recyclers Shooed 3 | . . . . . . 2 . . 1 . . Parts Field Recycled . | . . . . . . . . . . . . Retrieved Matter . | . . . . . . . . . . . . Parts Self-Destructed . | . . . . . . . . . . . . Prevented . | . . . . . . . . . . . . Kills | -11 -10 -10 -10 -9 -8 -8 -8 -8 -6 -6 -6 ------- Run | Yrd Mat Min Exi Min Mat Sto Rec Scr Fac Gar Fac Combat Hostiles Destroyed 183 | . 9 6 . . 57 40 5 . 37 28 1 Melee 7 | . . 1 . . . 2 . . 3 1 . Guns 51 | . 6 . . . 10 5 1 . 16 12 1 Cannons 29 | . 3 . . . 15 3 4 . . 4 . AOE 49 | . . 5 . . 21 17 . . 5 1 . Classes Destroyed 20 | 1 4 1 . . 12 1 1 . . . . Worker 4 | . . . . . 1 1 . . 2 . . Builder 5 | . . . . . 1 2 . . 2 . . Tunneler 1 | . 1 . . . . . . . . . . Hauler 12 | . 1 . . . 5 4 . . 2 . . Recycler 8 | 1 . . . . 1 2 . . 4 . . Carrier 1 | . . . . . 1 . . . . . . Mechanic 4 | . . . . . 2 2 . . . . . Operator 6 | . . . . . 3 2 . . 1 . . Watcher 11 | . 3 . . . 4 1 . . 3 . . Swarmer 27 | . . . . . 10 2 . . 8 7 . Grunt 87 | . 9 . . . 28 22 1 . 17 10 . Brawler 7 | . . . . . 3 3 . . . . 1 Duelist 5 | . . . . . 1 2 1 . 1 . . Protector 2 | . . . . . . 1 . . 1 . . Sentry 25 | . . . . . 9 10 2 . 1 3 . Specialist 2 | . . . . . 2 . . . . . . Hunter 14 | . . . . . 3 . . . 5 6 . Programmer 8 | . . . . . . . 1 . 5 2 . Heavy 1 | . . . . . 1 . . . . . . Assembled 6 | . . 6 . . . . . . . . . Best Kill Streak 15 | 1 2 6 . . 13 15 2 . 7 6 1 Combat Bots Only 13 | . 2 6 . . 10 13 2 . 6 6 1 Max Kills in Single Turn 6 | 1 1 3 . . 6 3 1 . 3 2 1 Gunslinging 1 | . . . . . . . . . 1 1 . Exploded 3 | . . 3 . . 2 2 . . 2 1 . Melee 1 | . . 1 . . . 1 . . 1 1 . Uniques/NPCs Destroyed . | . . . . . . . . . . . . Combat | -11 -10 -10 -10 -9 -8 -8 -8 -8 -6 -6 -6 -------- Run | Yrd Mat Min Exi Min Mat Sto Rec Scr Fac Gar Fac Hostile Shots Fired 998 | . 71 27 . . 114 135 11 . 310 313 17 Missed 290 | . 30 7 . . 36 38 3 . 89 82 5 Damage Taken 10484 | . 557 507 . . 1407 1634 110 . 3205 2905 159 Core 1536 | . 130 102 . . 184 266 . . 416 417 21 Absorbed by Shields 984 | . . . . . . . 10 . 309 560 105 Redirected to Shielding 123 | . 10 . . . . . . . . 108 5 Regen/Repaired (Parts) 862 | . . . . . 431 232 . . 199 . . Core Remaining (%) 41 | 100 . . . 7 . . . 18 . . . Volleys Fired 407 | 2 61 4 . . 136 56 9 . 66 70 3 Largest 3 | 2 2 2 . . 2 2 2 . 3 3 2 Hottest 325 | 70 80 80 . . 250 250 96 . 325 325 122 Shots Fired 812 | 4 121 8 . . 235 85 18 . 179 153 9 Gun 592 | 4 96 5 . . 150 37 9 . 171 111 9 Cannon 212 | . 25 . . . 85 48 9 . 8 37 . Launcher 3 | . . 3 . . . . . . . . . Special 5 | . . . . . . . . . . 5 . Kinetic 248 | 2 61 1 . . 71 . 9 . 42 57 5 Thermal 556 | 2 60 4 . . 164 85 9 . 137 91 4 Explosive 3 | . . 3 . . . . . . . . . Electromagnetic . | . . . . . . . . . . . . Robot Hit Streak 17 | 2 9 3 . . 11 15 14 . 17 8 1 Robot Miss Streak 11 | 1 6 3 . . 11 6 . . 7 4 1 Penetration Max 1 | . . . . . 1 . . . 1 1 . Secondary Targets 8 | . . . . . . 1 . . 4 3 . Max Gunslinging Chain 1 | . . . . . . 1 . . 1 1 . Shots Hit Robots 599 | 3 68 7 . . 161 80 14 . 146 117 3 Core Hits 394 | 2 29 20 . . 135 87 6 . 71 43 1 Critical Kills 12 | . . . . . 1 1 . . 5 5 . Critical Parts Destroyed 37 | . . . . . 2 3 1 . 16 14 1 Critical Strikes 75 | . 3 . . . 7 8 1 . 31 24 1 Burn 22 | . 3 . . . 2 2 . . 10 5 . Meltdown 1 | . . . . . . . . . 1 . . Destroy 13 | . . . . . 3 . 1 . 3 5 1 Smash 37 | . . . . . . 6 . . 17 14 . Sever 2 | . . . . . 2 . . . . . . Melee Attacks 172 | . . 6 . . 13 29 1 . 71 48 4 Impact 159 | . . 6 . . . 29 1 . 71 48 4 Slashing 13 | . . . . . 13 . . . . . . Piercing . | . . . . . . . . . . . . Sneak Attacks 8 | . . . . . 1 1 . . 5 1 . Combat Hostiles 1 | . . . . . . . . . . 1 . Follow-up Attacks . | . . . . . . . . . . . . Damage Inflicted 21892 | 33 931 881 . . 5413 4523 298 . 5481 4261 71 Guns 6469 | 33 705 24 . . 1575 601 98 . 2302 1068 63 Cannons 3031 | . 212 . . . 1286 789 200 . 141 403 . Explosions 6841 | . . 529 . . 2363 2362 . . 1096 491 . Melee 5486 | . . 328 . . 189 728 . . 1942 2299 . Ramming 65 | . 14 . . . . 43 . . . . 8 Kinetic 2371 | 7 390 . . . 713 . 98 . 675 425 63 Thermal 13005 | 26 527 24 . . 4511 3752 200 . 2428 1537 . Explosive 872 | . . 529 . . . . . . 343 . . Electromagnetic 93 | . . . . . . . . . 93 . . Impact 5297 | . . 328 . . . 728 . . 1942 2299 . Slashing 189 | . . . . . 189 . . . . . . Piercing . | . . . . . . . . . . . . Highest Corruption 7 | . . . . . . . . . 3 7 7 Average Corruption 5 | . . . . . . . . . 1 6 7 Corruption Purged . | . . . . . . . . . . . . Corruption Blocked . | . . . . . . . . . . . . Effects 114 | . . . . . . . . . 15 79 20 Message Errors 36 | . . . . . . . . . 5 27 4 Matter Fused 25 | . . . . . . . . . 2 20 3 Heat Flow Errors 12 | . . . . . . . . . 4 6 2 Energy Discharges 11 | . . . . . . . . . 1 8 2 Parts Rejected 1 | . . . . . . . . . . . 1 Parts Fused 2 | . . . . . . . . . 1 1 . Data Loss (minor) 12 | . . . . . . . . . 1 7 4 Data Loss (major) 9 | . . . . . . . . . 1 7 1 Misfires 5 | . . . . . . . . . . 2 3 Weapon Failures 1 | . . . . . . . . . . 1 . Overload Shots . | . . . . . . . . . . . . Overflow Damage 2498 | . . 152 . . 32 188 . . 1022 1104 . Projectiles 9 | . . . . . 1 8 . . . . . Explosions 78 | . . . . . . 13 . . 65 . . Melee 2411 | . . 152 . . 31 167 . . 957 1104 . Knockbacks 15 | . . 1 . . . 1 . . 10 3 . Impact 15 | . . 1 . . . 1 . . 10 3 . Kinetic . | . . . . . . . . . . . . Secondary . | . . . . . . . . . . . . Self-Inflicted Damage 363 | . 7 63 . . 165 124 . . . 4 . Shots 31 | . . 3 . . 17 10 . . . 1 . Rammed 8 | . 1 . . . . 6 . . . . 1 Targets Rammed 8 | . 1 . . . . 6 . . . . 1 Kicked . | . . . . . . . . . . . . Crushed . | . . . . . . . . . . . . Highest Temperature 605 | 60 342 54 . . 563 516 36 . 573 605 125 Average Temperature 136 | 35 92 24 . . 174 156 17 . 133 146 69 Received Heat Transfer 2502 | . 285 9 . . 414 621 39 . 734 364 36 Effects 32 | . 2 . . . 9 9 . . 5 7 . Shutdowns 2 | . . . . . 1 . . . . 1 . Energy Bleed 4 | . . . . . 2 . . . 2 . . Interference 13 | . 1 . . . 2 8 . . 2 . . Matter Decay 2 | . . . . . 1 . . . 1 . . Short Circuit 3 | . 1 . . . 1 1 . . . . . Damage (minor) 1 | . . . . . . . . . . 1 . Damage (major) 6 | . . . . . 1 . . . . 5 . Damage (core) 1 | . . . . . 1 . . . . . . Siege Activations . | . . . . . . . . . . . . Robots Corrupted 28 | . . . . . . 4 . . 12 12 . Combat Hostiles 15 | . . . . . . 2 . . 7 6 . Parts Fried 45 | . . . . . . 6 . . 20 19 . Impact Corruptions 73 | . . 3 . . . 9 . . 36 25 . Robots Melted 35 | . . . . . 12 12 . . 7 4 . Combat Hostiles 32 | . . . . . 11 11 . . 6 4 . Parts Melted 193 | . 4 . . . 76 60 2 . 34 17 . Heat Transferred 51954 | 74 1591 74 . . 18726 16452 333 . 8924 5780 . Parts Sabotaged . | . . . . . . . . . . . . Parts Stolen . | . . . . . . . . . . . . Parts Stripped . | . . . . . . . . . . . . Power Chain Reactions 1 | . . . . . . . . . 1 . . Alert | -11 -10 -10 -10 -9 -8 -8 -8 -8 -6 -6 -6 ------- Run | Yrd Mat Min Exi Min Mat Sto Rec Scr Fac Gar Fac Peak Influence 2118 | 5 195 15 . . 1131 1305 615 . 638 2118 1204 Initial 1111 | . 3 7 . . . 477 508 . . 254 1111 Average 587 | . 74 . . . 469 653 497 . 357 1129 1053 Maximum Alert Level 5 | . . . . . 4 4 2 . 2 5 4 Low Security (%) 19 | 100 100 100 . 100 24 . . . 9 . . Level 1 16 | . . . . . 7 3 1 . 57 4 . Level 2 33 | . . . . . 51 61 98 . 32 17 . Level 3 15 | . . . . . 14 27 . . . 29 54 Level 4 9 | . . . . . 2 7 . . . 25 45 Level 5 5 | . . . . . . . . . . 23 . High Security . | . . . . . . . . . . . . Max Security . | . . . . . . . . . . . . Sterilizations 1 | . . . . . 1 . . . . . . Squads Dispatched 50 | . 2 . . . 14 8 . . 20 . 6 Investigation 15 | . 2 . . . 5 . . . 7 . 1 Extermination 6 | . . . . . . . . . 5 . 1 Reinforcement 16 | . . . . . 7 4 . . 3 . 2 Assault 10 | . . . . . 2 4 . . 2 . 2 Garrison 3 | . . . . . . . . . 3 . . Intercept . | . . . . . . . . . . . . Searches Triggered . | . . . . . . . . . . . . Construction Impeded 5 | . . . . . 3 2 . . . . . Haulers Reinforced 3 | . . . . . . . . . 3 . . Active Scanning Responses . | . . . . . . . . . . . . Cargo Convoy Interrupts 1 | . . . . . . . . . 1 . . Stealth | -11 -10 -10 -10 -9 -8 -8 -8 -8 -6 -6 -6 --------- Run | Yrd Mat Min Exi Min Mat Sto Rec Scr Fac Gar Fac Distress Signals 7 | . 2 . . . 4 1 . . . . . Communications Jammed . | . . . . . . . . . . . . Distress Signals . | . . . . . . . . . . . . Times Spotted 298 | . 21 22 . . 81 62 4 . 61 35 12 Peak Tracking Total 21 | . 4 21 . . 5 12 2 . 6 8 7 Tactical Retreats 16 | . 4 . . . 1 2 . . 4 4 1 Traps | -11 -10 -10 -10 -9 -8 -8 -8 -8 -6 -6 -6 ------- Run | Yrd Mat Min Exi Min Mat Sto Rec Scr Fac Gar Fac Traps Triggered 8 | . 2 . . . 1 2 . . 2 1 . Indirectly . | . . . . . . . . . . . . Trap Hack Attempts . | . . . . . . . . . . . . Triggered . | . . . . . . . . . . . . Disarmed . | . . . . . . . . . . . . Reprogrammed . | . . . . . . . . . . . . Reused . | . . . . . . . . . . . . Traps Extracted . | . . . . . . . . . . . . Installed . | . . . . . . . . . . . . Triggered 2 | . . . . . . . . . 2 . . Machines | -11 -10 -10 -10 -9 -8 -8 -8 -8 -6 -6 -6 ---------- Run | Yrd Mat Min Exi Min Mat Sto Rec Scr Fac Gar Fac Machines Disabled 33 | . 1 . . . 7 6 . . 10 7 2 Max in Single Turn 6 | . 1 . . . 2 2 . . 6 1 1 Garrison Access 3 | . . . . . 1 1 . . 1 . . Garrison Relay 4 | . . . . . . . . . . 4 . Machines Repaired . | . . . . . . . . . . . . Machines Dismantled . | . . . . . . . . . . . . Machines Sabotaged . | . . . . . . . . . . . . Overloaded Fab Kills . | . . . . . . . . . . . . Hacking | -11 -10 -10 -10 -9 -8 -8 -8 -8 -6 -6 -6 --------- Run | Yrd Mat Min Exi Min Mat Sto Rec Scr Fac Gar Fac Machines Accessed 68 | . 7 . 2 . 13 10 10 2 18 2 4 Terminals 38 | . 6 . . . 9 6 5 . 7 2 3 Fabricators 3 | . . . . . . . . . 3 . . Repair Stations 3 | . . . . . 1 1 . . 1 . . Recycling Units 8 | . 1 . . . . 2 4 . 1 . . Scanalyzers 6 | . . . . . 2 . . . 3 . 1 Garrison Access 5 | . . . . . 1 1 . . 3 . . Total Hacks 193 | . 21 . 2 . 41 32 22 18 44 5 8 Successful 114 | . 9 . 2 . 24 17 11 18 28 2 3 Failed 79 | . 12 . . . 17 15 11 . 16 3 5 Catastrophic 14 | . 1 . . . 1 1 4 . 5 . 2 Database Lockouts . | . . . . . . . . . . . . Manual 74 | . 14 . 1 . 14 9 17 . 15 . 4 Terminals 104 | . 19 . . . 30 18 11 . 16 5 5 Fabricators 8 | . . . . . . . . . 8 . . Repair Stations 15 | . . . . . 4 6 . . 5 . . Recycling Units 20 | . 2 . . . . 5 10 . 3 . . Scanalyzers 17 | . . . . . 6 . . . 8 . 3 Garrison Access 8 | . . . . . 1 3 . . 4 . . Terminal Hacks 54 | . 4 . 2 . 12 8 3 18 5 2 . Record 20 | . . . 1 . . . 1 18 . . . Part Schematic 2 | . . . . . 1 . . . 1 . . Robot Schematic 1 | . . . . . . 1 . . . . . Robot Analysis 2 | . 1 . . . 1 . . . . . . Prototype ID Bank 6 | . . . . . 4 . 2 . . . . Open Door 2 | . . . . . . 2 . . . . . Emergency Access Points 2 | . . . . . 1 . . . . 1 . Terminal Index 3 | . 1 . . . 1 1 . . . . . Repair Station Index 1 | . . . . . 1 . . . . . . Recycling Unit Index 1 | . . . . . . 1 . . . . . Alert Level 1 | . . . . . . 1 . . . . . Unreport Threat 8 | . 1 . . . 3 1 . . 3 . . Locate Traps 3 | . 1 . . . . 1 . . 1 . . Garrison Registry 1 | . . . . . . . . . . 1 . Derelict Proto ID Bank 1 | . . . 1 . . . . . . . . Fabricator Hacks 6 | . . . . . . . . . 6 . . Load Schematic 3 | . . . . . . . . . 3 . . Build 3 | . . . . . . . . . 3 . . Repair Station Hacks 10 | . . . . . 4 3 . . 3 . . Scan Component 6 | . . . . . 2 2 . . 2 . . Repair 4 | . . . . . 2 1 . . 1 . . Recycling Unit Hacks 2 | . . . . . . 1 . . 1 . . Retrieve Components 2 | . . . . . . 1 . . 1 . . Scanalyzer 12 | . . . . . 4 . . . 5 . 3 Insert Component 6 | . . . . . 2 . . . 3 . 1 Analyze 6 | . . . . . 2 . . . 2 . 2 Garrison Access Hacks 5 | . . . . . 1 1 . . 3 . . Unlock Access 3 | . . . . . . . . . 3 . . Seal Access 2 | . . . . . 1 1 . . . . . Unauthorized Hacks 25 | . 5 . . . 3 4 8 . 5 . . Terminals 9 | . 4 . . . 2 1 . . 2 . . Assimilate 2 | . . . . . 1 . . . 1 . . Botnet 6 | . 3 . . . 1 1 . . 1 . . Operators 1 | . 1 . . . . . . . . . . Fabricators . | . . . . . . . . . . . . Repair Stations . | . . . . . . . . . . . . Recycling Units 14 | . 1 . . . . 3 8 . 2 . . Monitor 1 | . . . . . . . 1 . . . . Reject 6 | . . . . . . 1 4 . 1 . . Mask 7 | . 1 . . . . 2 3 . 1 . . Scanalyzers 2 | . . . . . 1 . . . 1 . . Extract 2 | . . . . . 1 . . . 1 . . Garrison Access . | . . . . . . . . . . . . Data Cores Recovered 1 | . . . . . . . . . 1 . . Used . | . . . . . . . . . . . . Hacking Detections 53 | . 7 . . . 10 7 9 . 14 2 4 Full Trace Events 13 | . 2 . . . 3 . 2 . 4 1 1 Feedback Events 1 | . . . . . . . . . 1 . . Hackware Fried 1 | . . . . . . . . . 1 . . Feedback Blocked . | . . . . . . . . . . . . Robot Schematics Acquired 1 | . . . . . . 1 . . . . . Robots Built . | . . . . . . . . . . . . Authchips . | . . . . . . . . . . . . Time . | . . . . . . . . . . . . Total Robot Build Rating . | . . . . . . . . . . . . Part Schematics Acquired 10 | . . . . . 4 . . . 6 . . Parts Built 4 | . . . . . . . . . 4 . . Authchips . | . . . . . . . . . . . . Time 154 | . . . . . . . . . 154 . . Total Part Build Rating 16 | . . . . . . . . . 16 . . Parts Repaired 4 | . . . . . 2 1 . . 1 . . Time 144 | . . . . . 76 38 . . 30 . . Parts Recycled . | . . . . . . . . . . . . Recycled Matter . | . . . . . . . . . . . . Retrieved Matter . | . . . . . . . . . . . . Retrieved Components 13 | . . . . . . 10 . . 3 . . Parts Scanalyzed 5 | . . . . . 2 . . . 2 . 1 Part Schematics Acquired 4 | . . . . . 2 . . . 2 . . Parts Damaged . | . . . . . . . . . . . . Bothacking | -11 -10 -10 -10 -9 -8 -8 -8 -8 -6 -6 -6 ------------ Run | Yrd Mat Min Exi Min Mat Sto Rec Scr Fac Gar Fac Used RIF Installer 1 | . . . . . . . . . . 1 . Robots Hacked 2 | . . . . . . . . . . 2 . Non-combat . | . . . . . . . . . . . . Combat 2 | . . . . . . . . . . 2 . Robot Hacks Applied 2 | . . . . . . . . . . 2 . formatsys_high 2 | . . . . . . . . . . 2 . Relay Couplers Released 16 | . . . . . . . . . 1 15 . Machine Destruction 16 | . . . . . . . . . 1 15 . Attached 1 | . . . . . . . . . . 1 . Fabnet Peak Effective % . | . . . . . . . . . . . . Robots Rewired 10 | . . . . . . . 10 . . . . Allies Hacked . | . . . . . . . . . . . . Hacks Repelled . | . . . . . . . . . . . . Allies | -11 -10 -10 -10 -9 -8 -8 -8 -8 -6 -6 -6 -------- Run | Yrd Mat Min Exi Min Mat Sto Rec Scr Fac Gar Fac Total Allies 14 | . . . . . 1 . 10 . 1 2 . Largest Group 10 | . . . . . 1 . 10 10 10 2 2 Highest-Rated Group 182 | . . . . . 10 . 182 182 182 76 76 Highest-Rated Ally 47 | . . . . . 10 . 27 27 27 47 47 Total Orders 6 | . . . . . 2 2 . . 2 . . STAY 1 | . . . . . 1 . . . . . . FOLLOW 1 | . . . . . 1 . . . . . . EXPLORE 4 | . . . . . . 2 . . 2 . . Ally Attacks 101 | . . . . . . . 4 . 71 3 23 Total Damage 1710 | . . . . . . . 79 . 1065 99 467 Kills 16 | . . . . . . . 1 . 10 1 4 Allies Corrupted . | . . . . . . . . . . . . Allies Melted . | . . . . . . . . . . . . Intel | -11 -10 -10 -10 -9 -8 -8 -8 -8 -6 -6 -6 ------- Run | Yrd Mat Min Exi Min Mat Sto Rec Scr Fac Gar Fac Robot Analysis Total 2 | . 1 . . . 1 . . . . . . Derelict Logs Recovered 1 | . . 1 . . . . . . . . . Drone Launches 16 | . . . . . . 14 . . 2 . . Drone Recoveries 4 | . . . . . . 4 . . . . . Exploration | -11 -10 -10 -10 -9 -8 -8 -8 -8 -6 -6 -6 ------------- Run | Yrd Mat Min Exi Min Mat Sto Rec Scr Fac Gar Fac Turns Passed 15427 | 57 1240 221 215 260 2913 1378 812 1144 3310 3006 871 Spaces Moved 8317 | 44 709 152 237 284 1465 575 485 874 1957 1166 369 Core 3 | 2 . . . . . . . . . 1 . Treads 870 | . . . . . . . . . . 501 369 Legs 310 | . . . . . . . . . . 310 . Wheels 7134 | 42 709 152 237 284 1465 575 485 874 1957 354 . Hover . | . . . . . . . . . . . . Flight . | . . . . . . . . . . . . Fastest Speed 50 | 50 100 90 90 90 120 115 130 130 115 115 225 Average Speed 140 | 89 117 92 90 90 126 134 130 130 132 205 225 Slowest Speed 900 | 100 120 135 90 90 145 145 130 130 145 900 225 Overloaded Moves . | . . . . . . . . . . . . Propulsion Burnouts . | . . . . . . . . . . . . Robots Hopped . | . . . . . . . . . . . . Cave-ins Triggered . | . . . . . . . . . . . . Exploration Rate (%) 63 | 5 89 62 61 64 93 92 95 57 47 80 14 Regions Visited 11 Branch Regions 6 Pre-discovered Areas 1 | . . . . . . . . 1 . . . Known Exits Taken 2 | . . . . . 1 . . . 1 . . Unknown Exits Taken 8 | 1 1 1 1 1 . 1 1 1 . . . Scrap Searched 5 | . . . . 1 . . . 4 . . . Spaces Dug 37 | . . . . . 6 6 1 . 21 . 3 Terrain Destroyed 467 | . . 21 . . 197 185 2 . 56 1 5 Melee 33 | . . . . . 6 2 1 . 21 . 3 Projectile 25 | . . . . . 13 9 1 . . . 2 AOE 408 | . . 21 . . 178 174 . . 35 . . Terrain Rammed . | . . . . . . . . . . . . Walls Destroyed . | . . . . . . . . . . . . Machines Disabled . | . . . . . . . . . . . . Actions | -11 -10 -10 -10 -9 -8 -8 -8 -8 -6 -6 -6 --------- Run | Yrd Mat Min Exi Min Mat Sto Rec Scr Fac Gar Fac Total 11034 | 55 997 217 239 288 2282 1043 648 882 2409 1579 395 Wait 1525 | . 188 35 . 5 552 297 54 9 204 170 11 Move 8306 | 43 708 151 236 283 1464 574 484 873 1956 1165 369 Hop . | . . . . . . . . . . . . Pick Up 121 | 3 19 5 1 . 23 5 8 . 23 32 2 Fast Attach 85 | 5 4 1 . . 19 12 . . 22 19 3 Attach 92 | 1 . 3 . . 23 16 5 . 22 21 1 Detach 47 | . 2 . . . 20 10 1 . 8 6 . Swap 39 | 1 6 5 . . 5 5 2 . 7 8 . Drop 127 | . 8 7 2 . 27 15 3 . 30 34 1 Fire 407 | 2 61 4 . . 136 56 9 . 66 70 3 Melee 172 | . . 6 . . 13 29 1 . 71 48 4 Ram 7 | . 1 . . . . 6 . . . . . Kick . | . . . . . . . . . . . . Crush 1 | . . . . . . . . . . . 1 Escape Stasis 21 | . . . . . . 16 . . . 5 . Rewire 84 | . . . . . . 2 81 . . 1 . Trap . | . . . . . . . . . . . . Miscellaneous . | . . . . . . . . . . . . Route ------- -11/Scrapyard -10/Materials (discovered 4 exits: [*Mat x2] / [*Min x2]) -10/Mines -10/Exiles -9/Mines -8/Materials (discovered 5 exits: [*Fac x3] / *Sto x2) -8/Storage (discovered 2 exits: [*Fac] / *Rec) -8/Recycling (discovered 2 exits: *Fac / *Scr) -8/Scraptown -6/Factory (discovered 4 exits: [*Fac] / [*Low] / Gar / Gar) -6/Garrison (discovered 3 exits: *Fac x3) -6/Factory History --------- Turn | Location | Event 26 | -11/Scrapyard | Discovered new exit (range 16) 58 | -11/Scrapyard | Entered Materials 336 | -10/Materials | Build established: Mutant 458 | -10/Materials | Discovered new exit (range 16) 569 | -10/Materials | Discovered new exit (range 15) 869 | -10/Materials | Discovered new exit (range 7) 875 | -10/Materials | Discovered new exit (range 16) 1253 | -10/Materials | Core integrity fell below 50% 1298 | -10/Materials | Entered Mines 1299 | -10/Mines | Assembled infested the area 1313 | -10/Mines | Met 8R-AWN 1316 | -10/Mines | Core integrity fell below 20% 1343 | -10/Mines | Lost 3 parts (1p2w) 1367 | -10/Mines | Learned 2 Materials zone layouts 1468 | -10/Mines | Found a damaged Exp. Sensor Array with a note attached 1470 | -10/Mines | Found Prototype Device 1516 | -10/Mines | Discovered new exit (range 5) 1519 | -10/Mines | Entered Exiles 1541 | -10/Exiles | Welcomed by 8R-AWN 1556 | -10/Exiles | Met EX-HEX 1583 | -10/Exiles | Met EX-BIN 1595 | -10/Exiles | Aligned with FarCom system 1596 | -10/Exiles | Given EX-Vault access code 1618 | -10/Exiles | Opened EX-Vault 1647 | -10/Exiles | Found Firepult 1665 | -10/Exiles | Warned to stay clear of 0b10 Research branches 1693 | -10/Exiles | Met EX-DEC 1725 | -10/Exiles | Discovered new exit (range 10) 1734 | -10/Exiles | Left Exiles lab with Firepult 1734 | -10/Exiles | Entered Mines 1924 | -9/Mines | Received a Rocket Launcher from a helpful Derelict 1983 | -9/Mines | Discovered new exit (range 11) 1994 | -9/Mines | Entered Materials 1994 | -8/Materials | Evolved 4 slots: Utility x4 1995 | -8/Materials | Identified exit to Storage 2118 | -8/Materials | Discovered exit to Storage (range 12) 2706 | -8/Materials | Discovered new exit (range 11) 2914 | -8/Materials | Discovered new exit (range 9) 2981 | -8/Materials | Destroyed 9 combat bots 3356 | -8/Materials | Repaired Hvy. Armor Plating 3832 | -8/Materials | Repaired Hvy. Armor Plating 4269 | -8/Materials | Discovered new exit (range 15) 4794 | -8/Materials | First assault squad dispatched 4832 | -8/Materials | Sterilization system engaged 4832 | -8/Materials | Non-combat units ordered to evacuate 4857 | -8/Materials | Destroyed 10 combat bots 4907 | -8/Materials | Entered Storage 4957 | -8/Storage | Repaired Hvy. Armor Plating 5662 | -8/Storage | Discovered new exit (range 15) 5707 | -8/Storage | First assault squad dispatched 5812 | -8/Storage | Core integrity fell below 50% 6213 | -8/Storage | Destroyed 13 combat bots 6218 | -8/Storage | Core integrity fell below 20% 6280 | -8/Storage | Used back door to open Recycling access 6280 | -8/Storage | Discovered new exit (range 5) 6285 | -8/Storage | Entered Recycling 6460 | -8/Recycling | Build established: Scavenger-Mutant 6668 | -8/Recycling | Discovered new exit (range 15) 6902 | -8/Recycling | Build established: Commander-Mutant 7058 | -8/Recycling | Scanned before Scraplab entrance 7076 | -8/Recycling | Entered Scraplab 7089 | -8/Recycling | Discovered new exit (range 2) 7097 | -8/Recycling | Entered Scraptown 7097 | -8/Scraptown | Accompanied by 10 allies 7387 | -8/Scraptown | Discovered new exit (range 5) 7452 | -8/Scraptown | Visited Red Mages 7521 | -8/Scraptown | Visited Cyclists 7642 | -8/Scraptown | Visited Fellowship of the Rings 7664 | -8/Scraptown | Visited IN-MT5's Study 7852 | -8/Scraptown | Visited Cave Peace 7897 | -8/Scraptown | Visited Symbiants 7943 | -8/Scraptown | Turned away by UFD registrar 8241 | -8/Scraptown | Entered Factory 8241 | -6/Factory | Accompanied by 10 allies 8241 | -6/Factory | Evolved 4 slots: Power x1, Utility x2, Weapon x1 8472 | -6/Factory | Identified exit to Garrison 8507 | -6/Factory | Garrison activated, responded to threat 8553 | -6/Factory | Lost 4 allies 8849 | -6/Factory | P-60 Hacker assimilated allied Engineer 3a 8969 | -6/Factory | Build established: Scavenger-Tank 9082 | -6/Factory | Fabricated Hrd. Heavy Armor Plating? 9144 | -6/Factory | Discovered new exit (range 12) 9512 | -6/Factory | Fabricated Arm. Huge Wheel? 9581 | -6/Factory | Lost 3 parts (1p2u) 9641 | -6/Factory | First assault squad dispatched 9784 | -6/Factory | Lost 7 parts (2p2u3w) 9958 | -6/Factory | Build established: Hacker-Mutant 10131 | -6/Factory | Fabricated Hrd. Heavy Armor Plating? 10335 | -6/Factory | Identified exit to Garrison 10384 | -6/Factory | Discovered new exit (range 10) 10396 | -6/Factory | Cargo convoy interrupted 10518 | -6/Factory | System Shield fried by hacking feedback 10548 | -6/Factory | Repaired Broken Arm. Huge Wheel 11391 | -6/Factory | Identified exit to Garrison 11551 | -6/Factory | Entered Garrison 11623 | -6/Garrison | Garrison Relay disabled 11638 | -6/Garrison | Triggered checkpoint 11640 | -6/Garrison | Core integrity fell below 50% 11678 | -6/Garrison | Garrison Relay disabled 11826 | -6/Garrison | Triggered checkpoint 11829 | -6/Garrison | Triggered checkpoint 12015 | -6/Garrison | Lost 3 parts (1n2u) 12090 | -6/Garrison | Triggered checkpoint 12161 | -6/Garrison | Core integrity fell below 20% 12178 | -6/Garrison | Lost 4 parts (2p2u) 12301 | -6/Garrison | Discovered new exit (range 10) 12379 | -6/Garrison | H-XX Assembler disabled 12439 | -6/Garrison | Found Prototype Device 12439 | -6/Garrison | Identified Active Sensor Suite 12500 | -6/Garrison | Build established: Scavenger-Mutant 12525 | -6/Garrison | Triggered checkpoint 12579 | -6/Garrison | Garrison Relay disabled 12634 | -6/Garrison | Discovered new exit (range 26) 12634 | -6/Garrison | Discovered new exit (range 30) 12634 | -6/Garrison | Discovered new exit (range 64) 13056 | -6/Garrison | Installed Relay Interface Framework 13211 | -6/Garrison | Build established: Scavenger-Tank 13505 | -6/Garrison | Triggered checkpoint 13620 | -6/Garrison | Build established: Tank 13717 | -6/Garrison | Triggered checkpoint 13837 | -6/Garrison | Garrison Relay disabled 14142 | -6/Garrison | Build established: Bothacker-Mutant 14557 | -6/Garrison | Entered Factory 14557 | -6/Factory | Accompanied by 2 allies 15257 | -6/Factory | First assault squad dispatched 15259 | -6/Factory | Build established: Bothacker-Tank 15428 | -6/Factory | Destroyed by G-50 Soldier with Heavy Laser Last Messages --------------- 15290_ System corrupted: FCS attempts to trigger Gauss Rifle. 15290_ System corrupted: Gauss Rifle misfires. 15290_ Slug penetrates Wall. 15299_ Connecting with Terminal... 15305_ < IW8FA5YF5X